bitfinex-derivatives/quotes_SOLF0:USTF0_20241231
["timestamp","ask_amount","ask_price","bid_price","bid_amount"]
[1735678426472,0.79403044,194.38,194.32,6.51702091]
[1735678427375,2.5774,194.35,194.32,6.51702091]
[1735678429778,6.51702091,194.39,194.32,6.51702091]
[1735678430073,0.79403882,194.38,194.34,6.51702091]
[1735678430278,0.79403882,194.37,194.36,6.51702091]
[1735678430582,3.06,194.41,194.36,6.51702091]
[1735678430770,0.79420461,194.4,194.36,6.51702091]
[1735678430975,6.51702091,194.43,194.34,3.06]
[1735678430976,0.79420461,194.39,194.38,9.09402091]
[1735678431274,2.5766,194.42,194.38,9.09402091]
[1735678431475,0.79421228,194.41,194.38,9.09402091]
[1735678432472,0.79421228,194.41,194.39,2.5768]
[1735678432775,0.79421228,194.4,194.39,2.5768]
[1735678432975,13.02115683,194.44,194.39,2.5768]
[1735678433181,3.37063384,194.43,194.39,2.5768]
[1735678433376,0.79433384,194.42,194.39,2.5768]
[1735678433573,0.79433384,194.41,194.39,2.5768]
[1735678433776,2.5763,194.43,194.39,2.5768]
[1735678433977,3.8660851,194.46,194.4,6.51702091]
[1735678434280,0.79440338,194.45,194.4,6.51702091]
[1735678434480,0.79440338,194.44,194.41,2.5766]
[1735678435283,3.37070338,194.44,194.4,9.09372091]
[1735678435473,0.79440338,194.43,194.4,9.09372091]
[1735678436279,0.79436307,194.42,194.38,6.51702091]
[1735678436583,0.79436307,194.41,194.38,6.51702091]
[1735678436786,2.5765,194.42,194.38,9.09402091]
[1735678436990,0.79430769,194.41,194.38,9.09402091]
[1735678437185,3.8660851,194.44,194.38,9.09402091]
[1735678437379,2.5766,194.42,194.38,2.577]
[1735678437583,0.79430135,194.41,194.38,9.09402091]
[1735678437978,2.5766,194.42,194.38,6.51702091]
[1735678438185,2.5766,194.42,194.39,2.5769]
[1735678438591,0.79430611,194.41,194.39,2.5769]
[1735678438886,2.5762,194.44,194.38,6.51702091]
[1735678439084,0.79435644,194.43,194.38,6.51702091]
[1735678439280,0.79435894,194.42,194.4,6.51702091]
[1735678439488,2.576,194.46,194.34,31.58103814]
[1735678439681,2.576,194.46,194.41,6.51702091]
[1735678439682,0.79440509,194.45,194.41,6.51702091]
[1735678439886,0.79440509,194.45,194.44,2.5762]
[1735678440285,6.51702091,194.51,194.43,6.51702091]
[1735678440483,3.37003337,194.5,194.45,6.51702091]
[1735678440685,0.79453337,194.49,194.45,6.51702091]
[1735678440882,0.79453337,194.49,194.48,2.5757]
[1735678441081,0.79458241,194.49,194.48,2.5757]
[1735678441278,3.86551762,194.52,194.47,6.51702091]
[1735678441579,6.51702091,194.57,194.5,2.5753]
[1735678441885,0.79476966,194.56,194.5,2.5753]
[1735678442078,2.575,194.54,194.5,2.5753]
[1735678442282,0.79476966,194.53,194.5,2.5753]
[1735678442482,0.79476966,194.52,194.5,2.5753]
[1735678442683,6.51702091,194.55,194.5,2.5753]
[1735678442878,2.5751,194.52,194.47,5.5957]
[1735678443086,0.79476576,194.51,194.47,5.5957]
[1735678443286,0.79465042,194.5,194.47,5.5957]
[1735678443498,0.79465042,194.49,194.47,2.5757]
[1735678443790,6.51702091,194.53,194.47,2.5757]
[1735678443990,0.79469392,194.52,194.47,2.5757]
[1735678444285,2.5754,194.51,194.47,2.5757]
[1735678444486,0.79469392,194.5,194.47,2.5757]
[1735678444687,0.79469392,194.5,194.48,2.5756]
[1735678444888,2.5752,194.52,194.48,2.5756]
[1735678445084,0.79483443,194.51,194.48,2.5756]
[1735678445590,0.79483443,194.51,194.49,2.5754]
[1735678445782,2.575,194.53,194.49,2.5754]
[1735678445977,0.7946712,194.52,194.49,2.5754]
[1735678447583,3.3697712,194.52,194.49,2.5754]
[1735678447786,0.7946712,194.51,194.49,2.5754]
[1735678449595,2.5751,194.52,194.49,2.5754]
[1735678450285,0.79428484,194.51,194.49,2.5754]
[1735678451188,2.5751,194.52,194.49,2.5754]
[1735678451384,0.79416535,194.51,194.49,2.5754]
[1735678452687,2.5751,194.52,194.49,2.5754]
[1735678453196,0.793981,194.51,194.47,2.5757]
[1735678453496,0.793981,194.5,194.46,6.51702091]
[1735678453696,17.33757124,194.55,194.46,6.51702091]
[1735678453892,0.79386909,194.54,194.46,6.51702091]
[1735678454091,0.79387737,194.54,194.46,6.51702091]
[1735678454395,0.79387737,194.54,194.48,6.51702091]
[1735678454993,2.5753,194.51,194.48,9.09272091]
[1735678455193,0.79387737,194.5,194.48,9.09272091]
[1735678455799,3.36927737,194.5,194.48,2.5757]
[1735678455991,0.79387737,194.49,194.48,2.5757]
[1735678456792,3.36937737,194.49,194.47,2.5758]
[1735678456996,0.79387737,194.48,194.46,6.51702091]
[1735678457297,0.79387737,194.48,194.44,6.51702091]
[1735678457498,6.51702091,194.51,194.45,2.576]
[1735678457699,0.79399921,194.5,194.44,6.51702091]
[1735678458098,2.5757,194.48,194.45,2.576]
[1735678458293,6.51702091,194.51,194.44,6.51702091]
[1735678458503,0.79397134,194.5,194.44,6.51702091]
[1735678459295,2.5756,194.49,194.44,9.09312091]
[1735678459492,0.79397134,194.48,194.44,6.51702091]
[1735678459894,0.79397134,194.48,194.47,2.5758]
[1735678460299,0.79397134,194.48,194.46,6.51702091]
[1735678460503,2.5753,194.52,194.49,2.5755]
[1735678460800,0.79408825,194.51,194.49,2.5755]
[1735678461201,3.36938825,194.51,194.49,2.5755]
[1735678461501,0.79391811,194.5,194.46,2.5759]
[1735678461693,0.79391811,194.49,194.46,2.5759]
[1735678461897,6.51702091,194.52,194.46,2.5759]
[1735678462099,0.79388524,194.51,194.46,2.5759]
[1735678462494,2.5756,194.49,194.46,9.09292091]
[1735678462699,2.5756,194.49,194.46,6.51702091]
[1735678462900,15.66002701,194.54,194.49,2.5754]
[1735678463100,2.5752,194.52,194.49,2.5754]
[1735678463298,0.79393618,194.51,194.4,7.13025953]
[1735678463499,2.5762,194.44,194.42,35.03805905]
[1735678464102,6.51702091,194.48,194.42,28.52103814]
[1735678464402,2.5763,194.43,194.39,10.93322091]
[1735678465403,2.5763,194.43,194.4,2.5767]
[1735678467608,6.51702091,194.44,194.36,28.52103814]
[1735678467808,0.79354547,194.43,194.36,35.03805905]
[1735678468207,0.79354547,194.43,194.36,9.09432091]
[1735678468606,3.36994547,194.43,194.39,2.5768]
[1735678468911,0.79354547,194.42,194.38,6.51702091]
[1735678469109,3.02,194.45,194.38,6.51702091]
[1735678469304,2.5766,194.42,194.38,9.09392091]
[1735678470006,6.88507366,194.46,194.4,6.51702091]
[1735678470207,3.36972721,194.45,194.4,6.51702091]
[1735678470506,0.79362721,194.44,194.4,6.51702091]
[1735678470706,2.5764,194.43,194.4,6.51702091]
[1735678471313,3.02,194.46,194.42,9.09342091]
[1735678471514,0.79365762,194.45,194.42,9.09342091]
[1735678471916,0.79365762,194.45,194.43,2.5763]
[1735678472110,0.79365762,194.45,194.42,6.51702091]
[1735678472312,0.79366348,194.44,194.42,6.51702091]
[1735678472610,3.02,194.46,194.42,6.51702091]
[1735678472912,3.36980295,194.45,194.42,6.51702091]
[1735678473112,0.79360295,194.44,194.42,6.51702091]
[1735678473314,3.02,194.46,194.42,6.51702091]
[1735678473513,0.79357337,194.45,194.42,6.51702091]
[1735678473919,0.79357337,194.45,194.4,9.09372091]
[1735678474923,9.53702091,194.46,194.4,9.09372091]
[1735678475124,0.79335289,194.44,194.4,9.09372091]
[1735678475527,0.79334462,194.43,194.4,6.51702091]
[1735678475714,0.79334462,194.43,194.38,6.51702091]
[1735678476820,2.5767,194.41,194.38,6.51702091]
[1735678478925,7.3103738,194.44,194.36,6.51702091]
[1735678479123,2.577,194.38,194.36,6.51702091]
[1735678480320,6.51702091,194.38,194.32,28.52103814]
[1735678480527,6.51702091,194.36,194.32,28.52103814]
[1735678480724,6.51702091,194.34,194.32,28.52103814]
[1735678480922,0.79295524,194.33,194.28,28.52103814]
[1735678481322,6.51702091,194.32,194.28,28.52103814]
[1735678481523,2.5779,194.31,194.28,28.52103814]
[1735678481823,6.51702091,194.32,194.28,28.52103814]
[1735678482323,6.51702091,194.32,194.26,6.51702091]
[1735678482324,2.5781,194.3,194.26,6.51702091]
[1735678482923,2.5782,194.29,194.26,6.51702091]
[1735678483122,2.5782,194.29,194.25,7.0648]
[1735678483326,2.5782,194.29,194.25,9.09562091]
[1735678483519,2.5784,194.28,194.23,9.09592091]
[1735678483930,2.5784,194.28,194.23,6.51702091]
[1735678485025,6.51702091,194.3,194.23,6.51702091]
[1735678485219,3.37076295,194.29,194.25,2.5787]
[1735678485419,0.79256295,194.28,194.23,6.51702091]
[1735678485721,0.79253825,194.27,194.23,6.51702091]
[1735678485928,6.51702091,194.3,194.23,6.51702091]
[1735678486119,0.7925344,194.29,194.23,6.51702091]
[1735678486517,2.5783,194.28,194.24,2.5788]
[1735678486718,0.7925344,194.27,194.24,2.5788]
[1735678486921,0.7925344,194.27,194.23,6.51702091]
[1735678487133,2.5787,194.25,194.23,6.51702091]
[1735678487428,3.02,194.29,194.23,6.51702091]
[1735678487626,0.79255012,194.28,194.23,6.51702091]
[1735678488226,0.79255012,194.28,194.24,2.5788]
[1735678488227,0.79245357,194.27,194.24,2.5788]
[1735678488628,2.5784,194.28,194.24,2.5788]
[1735678489030,6.92597366,194.35,194.27,2.5784]
[1735678489330,6.51702091,194.33,194.27,2.5784]
[1735678489529,0.79252716,194.32,194.27,2.5784]
[1735678490130,3.37042716,194.32,194.27,2.5784]
[1735678490327,0.79252716,194.31,194.25,6.51702091]
[1735678490525,6.51702091,194.33,194.26,2.5786]
[1735678490828,2.5779,194.31,194.25,6.51702091]
[1735678491031,2.5779,194.31,194.27,2.5784]
[1735678491933,2.5781,194.3,194.27,2.5784]
[1735678492835,3.02,194.34,194.27,6.51702091]
[1735678493133,0.79273996,194.33,194.27,6.51702091]
[1735678493333,2.578,194.31,194.26,2.5785]
[1735678493529,2.578,194.31,194.27,6.51702091]
[1735678493925,2.5781,194.3,194.27,9.09542091]
[1735678495830,2.5781,194.3,194.27,2.5784]
[1735678496137,2.5781,194.3,194.26,2.5785]
[1735678496331,6.51702091,194.33,194.26,2.5785]
[1735678496531,2.5782,194.29,194.26,2.5785]
[1735678496732,6.51702091,194.31,194.25,6.51702091]
[1735678496935,2.5788,194.25,194.22,6.51702091]
[1735678497442,2.5788,194.25,194.22,2.5791]
[1735678497738,2.5788,194.25,194.22,9.09612091]
[1735678497938,9.51702091,194.29,194.22,9.09612091]
[1735678498140,2.5786,194.26,194.23,2.579]
[1735678500344,2.579,194.23,194.2,10.07140953]
[1735678500542,6.51702091,194.27,194.2,7.49210953]
[1735678500742,6.51702091,194.25,194.2,7.49210953]
[1735678500945,2.5792,194.21,194.2,7.49210953]
[1735678501337,2.5792,194.21,194.2,0.36185]
[1735678501643,9.09622091,194.21,194.2,0.36185]
[1735678502240,2.5792,194.21,194.2,0.36185]
[1735678502539,2.5791,194.22,194.2,0.36185]
[1735678502845,3.0,194.25,194.2,0.36185]
[1735678503344,3.0,194.25,194.2,6.87887091]
[1735678503845,2.5789,194.24,194.2,9.09632091]
[1735678504435,2.5789,194.24,194.21,2.5792]
[1735678504646,3.0,194.25,194.22,6.51702091]
[1735678504841,3.0,194.28,194.22,6.51702091]
[1735678505040,3.0,194.28,194.23,2.5789]
[1735678505342,2.5786,194.27,194.23,2.5789]
[1735678505747,3.8701685,194.35,194.22,6.51702091]
[1735678505748,3.8701685,194.35,194.26,6.51702091]
[1735678506043,6.51702091,194.33,194.26,6.51702091]
[1735678506248,0.79287411,194.32,194.27,2.5783]
[1735678506645,2.5779,194.31,194.26,6.51702091]
[1735678506843,2.5779,194.31,194.26,9.09552091]
[1735678507344,2.5781,194.3,194.26,9.09552091]
[1735678508340,2.5784,194.28,194.24,5.5787]
[1735678508541,10.1979196,194.33,194.23,3.099]
[1735678508844,0.79298333,194.32,194.23,3.099]
[1735678509045,2.5784,194.28,194.24,2.5788]
[1735678510048,10.1979196,194.33,194.21,3.0]
[1735678510240,2.29224939,194.32,194.21,3.0]
[1735678510543,2.5787,194.26,194.22,2.579]
[1735678511749,1.499,194.32,194.2,170.52047436]
[1735678511945,10.1979196,194.3,194.2,170.52047436]
[1735678512146,10.1979196,194.27,194.2,170.52047436]
[1735678512450,2.5794,194.2,194.19,85.56311445]
[1735678513144,1.5263,194.26,194.15,173.10047436]
[1735678513350,0.79325139,194.25,194.15,170.52047436]
[1735678513650,13.1979196,194.24,194.15,170.52047436]
[1735678513849,2.5799,194.16,194.15,170.52047436]
[1735678514451,2.5799,194.16,194.12,2.5804]
[1735678518053,2.5803,194.13,194.1,3.04733]
[1735678520351,2.5803,194.13,194.1,0.46673]
[1735678520556,3.0,194.19,194.1,0.46673]
[1735678520757,10.99096813,194.18,194.1,0.46673]
[1735678521058,0.79304853,194.17,194.1,0.46673]
[1735678521353,2.5805,194.12,194.1,0.46673]
[1735678522461,2.5806,194.11,194.1,0.46673]
[1735678522761,3.79313736,194.11,194.05,85.56311445]
[1735678522958,2.5812,194.06,194.05,85.56311445]
[1735678523658,3.0,194.11,194.01,31.10283814]
[1735678523858,2.5814,194.05,194.01,31.10283814]
[1735678524362,2.5815,194.04,194.01,28.52103814]
[1735678524559,2.5815,194.04,194.01,7.13025953]
[1735678524760,3.0,194.11,194.01,7.13025953]
[1735678524962,0.79307053,194.1,194.01,7.13025953]
[1735678525163,0.79307053,194.1,194.01,9.71215953]
[1735678525358,0.79307053,194.1,194.01,7.13025953]
[1735678525662,2.5815,194.05,194.01,2.5818]
[1735678525865,3.0,194.11,193.99,28.52103814]
[1735678526068,10.1979196,194.09,193.99,28.52103814]
[1735678526360,0.79308226,194.08,193.99,28.52103814]
[1735678526564,0.79308226,194.08,193.98,7.13025953]
[1735678526960,10.1979196,194.09,193.98,7.13025953]
[1735678527163,0.79303871,194.08,193.98,7.13025953]
[1735678527563,2.5816,194.04,193.99,2.5821]
[1735678528066,3.04,194.07,193.99,2.5821]
[1735678528259,2.5817,194.03,193.99,2.5821]
[1735678528660,2.5817,194.03,193.98,2.5823]
[1735678529771,3.04,194.07,193.98,2.5823]
[1735678530061,3.04,194.09,193.98,3.04]
[1735678531061,2.5813,194.06,194.01,2.5819]
[1735678531965,2.5814,194.05,194.01,2.5819]
[1735678532261,3.04,194.09,194.0,10.1979196]
[1735678532756,13.2379196,194.09,193.97,10.1979196]
[1735678533665,10.1979196,194.09,193.97,10.1979196]
[1735678533865,3.04,194.08,193.97,10.1979196]
[1735678534064,2.5814,194.05,194.0,2.582]
[1735678534365,2.5814,194.05,193.97,10.1979196]
[1735678534959,2.5814,194.05,194.01,2.5818]
[1735678535862,3.04,194.08,194.01,2.5818]
[1735678536065,2.5815,194.04,194.01,2.5818]
[1735678536461,2.5817,194.03,193.99,2.5821]
[1735678536659,2.5817,194.03,193.97,10.1979196]
[1735678536660,3.04,194.08,193.97,10.1979196]
[1735678536866,1.6068,194.11,193.97,10.1979196]
[1735678537065,2.5815,194.05,194.01,2.5818]
[1735678537270,3.83345637,194.1,194.0,10.1979196]
[1735678537271,3.04,194.1,194.0,10.1979196]
[1735678537463,0.79355242,194.09,194.0,10.1979196]
[1735678538261,3.04,194.1,194.0,10.1979196]
[1735678538570,0.79348371,194.09,194.0,10.1979196]
[1735678538859,0.79348371,194.09,193.99,2.5821]
[1735678539167,10.99140331,194.09,193.98,2.5823]
[1735678539367,0.79348371,194.08,193.98,2.5823]
[1735678540268,2.582,194.01,193.97,12.7803196]
[1735678542663,2.582,194.01,193.98,2.5823]
[1735678542862,2.5811,194.07,193.97,10.1979196]
[1735678543166,0.79354717,194.06,193.97,10.1979196]
[1735678543366,3.04,194.08,194.01,2.5819]
[1735678543565,0.79358053,194.07,194.01,2.5819]
[1735678544469,2.5816,194.04,194.01,2.5819]
[1735678546566,2.5814,194.05,194.02,2.5817]
[1735678547168,3.04,194.08,194.01,2.5819]
[1735678547169,2.5815,194.04,194.01,2.5819]
[1735678547472,3.04,194.08,193.98,85.56311445]
[1735678547671,0.79409288,194.07,193.98,85.56311445]
[1735678547862,2.582,194.01,193.98,88.14541445]
[1735678548068,3.04,194.08,193.97,10.1979196]
[1735678548266,0.79403044,194.07,193.97,10.1979196]
[1735678549373,2.5815,194.04,193.97,12.7803196]
[1735678549571,3.04,194.08,193.97,12.7803196]
[1735678549867,0.79427517,194.07,193.97,10.1979196]
[1735678550076,2.5818,194.02,193.98,2.5822]
[1735678550272,2.5818,194.02,193.97,10.1979196]
[1735678550874,2.5818,194.02,193.99,2.5822]
[1735678551065,2.5819,194.01,193.97,10.1979196]
[1735678551972,2.5819,194.01,193.95,172.05217436]
[1735678552174,2.5819,194.01,193.95,182.25009396]
[1735678553069,10.1979196,194.09,193.95,182.25009396]
[1735678553070,2.5817,194.03,194.0,2.582]
[1735678553367,3.04,194.09,193.98,10.1979196]
[1735678553568,0.79488352,194.08,193.98,10.1979196]
[1735678554274,2.5814,194.05,194.02,2.5817]
[1735678554474,3.04,194.09,194.02,2.5817]
[1735678554666,2.5814,194.05,194.02,2.5817]
[1735678556475,2.5814,194.05,194.02,9.12377594]
[1735678558476,3.04,194.1,194.02,9.12377594]
[1735678558777,2.5815,194.04,194.02,9.12377594]
[1735678558971,6.54207594,194.09,194.02,9.12377594]
[1735678559271,0.7948093,194.08,194.02,9.12377594]
[1735678559471,6.54207594,194.09,194.02,9.12377594]
[1735678559668,0.79509183,194.08,194.02,9.12377594]
[1735678560171,0.79509183,194.08,194.02,6.54207594]
[1735678560372,0.79509183,194.08,194.04,6.54207594]
[1735678560574,0.79509183,194.08,194.06,6.54207594]
[1735678560771,13.04830056,194.11,194.06,6.54207594]
[1735678560772,9.17377364,194.11,194.06,6.54207594]
[1735678560972,3.87452692,194.12,194.06,6.54207594]
[1735678561175,0.79550463,194.11,194.06,6.54207594]
[1735678561380,13.52161062,194.14,194.06,6.54207594]
[1735678561580,0.79555461,194.13,194.06,6.54207594]
[1735678561779,0.79556416,194.12,194.08,6.54207594]
[1735678562277,2.5807,194.1,194.08,6.54207594]
[1735678562475,2.5807,194.1,194.05,1.5124]
[1735678562677,2.5807,194.1,194.06,2.5811]
[1735678562973,3.87452692,194.14,194.05,1.5124]
[1735678563281,0.79557283,194.13,194.06,2.5812]
[1735678563575,2.581,194.09,194.06,2.5812]
[1735678564271,3.87452692,194.14,194.05,1.5124]
[1735678564476,0.79565201,194.13,194.02,88.60311445]
[1735678564873,3.0215,194.12,194.02,88.60311445]
[1735678565077,2.5813,194.06,194.02,88.14481445]
[1735678565278,2.5813,194.06,194.02,2.5817]
[1735678565676,33.28793624,194.11,194.01,88.14501445]
[1735678565877,10.85739222,194.1,194.01,85.56311445]
[1735678566079,0.79523872,194.09,194.01,85.56311445]
[1735678566280,2.5817,194.03,193.99,32.55073814]
[1735678566974,2.5819,194.02,193.99,4.0297]
[1735678567180,3.87452692,194.09,194.0,2.582]
[1735678567378,0.79511799,194.08,193.99,1.4476]
[1735678567781,2.5819,194.02,193.99,4.0297]
[1735678567981,2.5819,194.02,193.99,1.4476]
[1735678568883,2.5819,194.02,193.99,4.0297]
[1735678569078,3.87452692,194.09,193.99,1.4476]
[1735678569275,2.5815,194.05,193.99,1.4476]
[1735678570284,2.5815,194.05,194.02,2.5817]
[1735678570475,3.87452692,194.09,193.99,1.4476]
[1735678570680,2.5812,194.07,194.03,2.5815]
[1735678571082,2.5813,194.06,194.03,2.5815]
[1735678571786,2.5815,194.05,194.01,12.79867038]
[1735678572385,2.5815,194.05,194.02,2.5817]
[1735678572587,2.5813,194.06,194.01,10.21677038]
[1735678573087,2.5813,194.06,194.03,2.5815]
[1735678573285,2.5813,194.06,194.01,10.21677038]
[1735678573585,3.87452692,194.09,194.01,10.21677038]
[1735678573586,2.5811,194.07,194.04,2.5815]
[1735678574085,3.87452692,194.09,194.01,13.25677038]
[1735678574384,9.17377364,194.1,194.04,10.21677038]
[1735678574588,3.87452692,194.1,194.04,10.21677038]
[1735678574787,2.5807,194.11,194.07,2.581]
[1735678574986,0.79540835,194.1,194.07,2.581]
[1735678575287,2.5807,194.1,194.07,2.581]
[1735678575787,20.05093725,194.14,194.06,3.04]
[1735678575987,4.67001527,194.13,194.06,3.04]
[1735678576187,0.79548835,194.12,194.06,3.04]
[1735678576383,2.5804,194.13,194.06,3.04]
[1735678576686,13.04830056,194.17,194.07,11.68947038]
[1735678576986,0.79571749,194.16,194.07,11.68947038]
[1735678577176,4.67024441,194.16,194.07,13.21127038]
[1735678577383,0.79571749,194.15,194.07,13.21127038]
[1735678577586,0.79571749,194.15,194.13,2.5802]
[1735678578077,2.5797,194.18,194.14,2.5801]
[1735678578281,0.79600157,194.17,194.14,2.5801]
[1735678578590,6.45382692,194.21,194.17,2.5797]
[1735678578792,3.87452692,194.23,194.13,10.21677038]
[1735678578992,0.79612285,194.22,194.13,10.21677038]
[1735678579193,0.79610657,194.21,194.13,10.21677038]
[1735678579493,15.37573368,194.24,194.13,10.21677038]
[1735678579789,9.96982937,194.23,194.13,10.21677038]
[1735678579986,0.79605573,194.22,194.13,10.21677038]
[1735678580389,0.79605573,194.21,194.13,10.21677038]
[1735678580591,2.5795,194.2,194.16,2.5798]
[1735678581488,3.87452692,194.24,194.13,10.21677038]
[1735678581791,1.59218218,194.23,194.16,3.02]
[1735678581994,0.7960911,194.22,194.16,13.23677038]
[1735678582384,0.7960911,194.22,194.2,2.5792]
[1735678582584,0.79609108,194.23,194.17,1.6037]
[1735678582895,0.79609108,194.23,194.19,10.21677038]
[1735678583393,0.79609108,194.23,194.12,4.4956]
[1735678583394,0.79607286,194.22,194.12,4.4956]
[1735678583594,0.79607286,194.22,194.13,10.21677038]
[1735678583891,0.79609108,194.23,194.16,2.5798]
[1735678584092,0.79623336,194.22,194.13,10.21677038]
[1735678584286,0.79609108,194.23,194.13,10.21677038]
[1735678584485,0.79620237,194.22,194.16,10.21677038]
[1735678584694,0.79609108,194.23,194.17,3.02]
[1735678584895,0.79627312,194.22,194.17,3.02]
[1735678585195,3.02,194.25,194.17,5.5998]
[1735678585391,0.79621162,194.24,194.17,5.5998]
[1735678585698,0.79621162,194.24,194.17,3.02]
[1735678586998,0.79565477,194.23,194.17,3.02]
[1735678587296,0.79565477,194.22,194.17,3.02]
[1735678587487,0.79565477,194.21,194.13,10.21677038]
[1735678587693,0.79565477,194.2,194.13,10.21677038]
[1735678587997,0.79565477,194.19,194.14,2.58]
[1735678588188,3.02,194.25,194.14,2.58]
[1735678588491,0.79560497,194.24,194.14,2.58]
[1735678588893,0.79560497,194.24,194.13,10.21677038]
[1735678589095,0.79560497,194.24,194.15,2.58]
[1735678589291,0.79560497,194.24,194.11,4.496]
[1735678589292,10.21677038,194.23,194.11,4.496]
[1735678589498,0.79560497,194.22,194.11,4.496]
[1735678589701,0.79558655,194.22,194.13,2.5803]
[1735678590403,3.88048655,194.22,194.13,2.5803]
[1735678590601,0.79558655,194.21,194.14,2.5801]
[1735678590805,0.79558655,194.21,194.11,4.496]
[1735678591005,0.79558655,194.21,194.13,10.21677038]
[1735678591205,3.02,194.25,194.18,2.5796]
[1735678591403,0.7963059,194.24,194.18,2.5796]
[1735678592106,3.02,194.25,194.18,2.5796]
[1735678592307,0.79635586,194.24,194.13,10.21677038]
[1735678593103,0.79635586,194.24,194.12,1.5175]
[1735678593510,2.35285586,194.24,194.12,1.5175]
[1735678593810,0.79635586,194.23,194.12,1.5175]
[1735678594407,0.79635586,194.23,194.14,2.5801]
[1735678595608,0.79635586,194.23,194.15,2.5799]
[1735678596102,10.21677038,194.21,194.11,2.5805]
[1735678596306,3.83658754,194.2,194.1,1.6037]
[1735678596503,0.79658754,194.19,194.1,1.6037]
[1735678596906,2.5803,194.14,194.1,4.1844]
[1735678597106,6.91231611,194.2,194.1,4.1844]
[1735678597305,10.21677038,194.18,194.07,3.04]
[1735678597505,0.79684867,194.17,194.07,3.04]
[1735678597709,2.5802,194.14,194.09,2.5808]
[1735678597908,0.79684867,194.13,194.09,2.5808]
[1735678598113,10.21677038,194.18,194.09,2.5808]
[1735678598305,2.5804,194.13,194.09,2.5808]
[1735678599108,13.25677038,194.15,194.07,2.581]
[1735678599307,1.59374499,194.14,194.04,1.5036]
[1735678599507,2.5807,194.11,194.04,4.085]
[1735678599813,0.79687059,194.1,194.04,1.5036]
[1735678600012,0.79674693,194.09,194.04,1.5036]
[1735678600210,3.37784693,194.08,194.04,4.0851]
[1735678600414,10.21677038,194.12,194.0,6.0697]
[1735678600610,0.79671496,194.11,194.0,6.0697]
[1735678601415,2.5812,194.07,194.03,2.5816]
[1735678601717,2.5812,194.07,194.0,6.0697]
[1735678602216,2.581,194.08,194.05,2.5813]
[1735678604618,2.5808,194.09,194.06,2.5812]
[1735678605220,6.9435744,194.14,194.07,2.581]
[1735678605517,0.79687212,194.13,194.01,10.21677038]
[1735678606216,2.5808,194.09,194.05,2.5813]
[1735678607818,10.21677038,194.12,194.01,3.04]
[1735678608015,0.79704258,194.11,194.0,6.0697]
[1735678608218,2.5812,194.07,194.0,8.6516]
[1735678608513,10.21677038,194.09,193.99,1.5518]
[1735678608514,0.79704258,194.06,193.99,1.5518]
[1735678608714,0.79697913,194.05,193.99,1.5518]
[1735678608921,0.79697913,194.04,193.95,1.5642]
[1735678609122,0.79697913,194.03,193.96,3.04]
[1735678609323,3.87317855,194.08,193.96,3.04]
[1735678609520,0.79691539,194.07,193.96,3.04]
[1735678609916,0.79691539,194.06,193.96,3.04]
[1735678610117,2.5819,194.02,193.98,2.5823]
[1735678611113,2.5819,194.01,193.98,2.5823]
[1735678611315,3.04,194.04,193.95,1.5642]
[1735678611523,0.79662565,194.03,193.95,1.5642]
[1735678612525,2.5818,194.02,193.98,2.5822]
[1735678612727,3.04,194.04,193.95,1.5642]
[1735678612928,0.7962784,194.03,193.95,1.5642]
[1735678613120,2.5818,194.02,193.99,2.5821]
[1735678613520,3.04,194.04,193.99,2.5821]
[1735678613723,3.37788512,194.03,193.99,2.5821]
[1735678613917,2.5817,194.03,193.99,2.5821]
[1735678614124,3.04,194.04,193.99,2.5821]
[1735678614428,0.79609857,194.03,193.95,1.5642]
[1735678614629,2.5819,194.01,193.98,2.5823]
[1735678614830,10.21677038,193.99,193.87,28.52103814]
[1735678615125,2.5835,193.9,193.87,28.52103814]
[1735678615327,3.04,193.93,193.87,28.52103814]
[1735678615527,13.25677038,193.93,193.87,28.52103814]
[1735678615826,13.25677038,193.93,193.82,56.98090275]
[1735678615827,2.5836,193.88,193.84,2.584]
[1735678616831,13.25677038,193.93,193.86,2.5839]
[1735678616832,2.5834,193.9,193.86,2.5839]
[1735678617230,13.25677038,193.93,193.82,10.21677038]
[1735678617427,0.79581833,193.92,193.82,10.21677038]
[1735678618233,13.25677038,193.93,193.82,10.21677038]